Cogmind - Beta 13 @@@ ROGUE MODE // 2024.05.18 @ 02:03:41 Player: Erik The Viking Result: Destroyed by Y-45 Defender with Heavy Assault Rifle Performance ------------- Evolutions (0) 0 Regions Visited (2) 400 Robots Destroyed (32) 160 Value Destroyed (469) 469 Prototype IDs (0) 0 Alien Tech Used (0) 0 Bonus (0) 0 TOTAL SCORE: 1029 Bonus ------- None Cogmind --------- Core Integrity 0/250 Matter 300/300 Energy 100/100 System Corruption 0% Temperature Cool (9) Movement Core (100) Ox1 Location -10/Mines Parts ------- > --- POWER (1) -------- (None) > --- PROPULSION (2) --- (None) > --- UTILITY (2) ------ Hacking Suite > --- WEAPON (2) ------- Improved Light Cannon > --- INVENTORY (5) ---- Medium Matter Pod (100) Structural Scanner Mining Laser Peak State ------------ > --- POWER ------------ Ion Engine > --- PROPULSION ------- Compact Wheel Compact Wheel > --- UTILITY ---------- Improved Terrain Scanner Terrain Scan Processor > --- WEAPON ----------- Improved Light Cannon Improved Light Cannon > --- INVENTORY -------- Light Ion Engine Medium Matter Pod Medium Laser Assault Rifle Improved Light Cannon [Rating: 12] Favorites ----------- Power Ion Engine Engine Ion Engine Propulsion Compact Wheel Leg Aluminum Leg Wheel Compact Wheel Flight Unit Flight Unit Utility Improved Terrain Scanner Device Improved Terrain Scanner Storage Small Storage Unit Processor Terrain Scan Processor Hackware Hacking Suite Weapon Improved Light Cannon Energy Gun Medium Laser Ballistic Gun Assault Rifle Ballistic Cannon Improved Light Cannon Build | -11 -10 -10 ------- Run | Yrd Mat Min Slots Evolved . | . . . Power . | . . . Propulsion . | . . . Utility . | . . . Weapon . | . . . Parts Attached 27 | 12 11 4 Power 1 | 1 . . Engine 1 | 1 . . Core . | . . . Reactor . | . . . Propulsion 6 | 2 4 . Treads . | . . . Leg 2 | . 2 . Wheel 2 | 2 . . Hover . | . . . Flight 2 | . 2 . Utility 11 | 6 3 2 Device 7 | 4 2 1 Storage 2 | 2 . . Processor 1 | . 1 . Hackware 1 | . . 1 Protection . | . . . Artifact . | . . . Weapon 9 | 3 4 2 Energy Gun 3 | 2 1 . Energy Cannon . | . . . Ballistic Gun 2 | 1 1 . Ballistic Cannon 4 | . 2 2 Launcher . | . . . Special Weapon . | . . . Impact Weapon . | . . . Slashing Weapon . | . . . Piercing Weapon . | . . . Special Melee Weapon . | . . . Unidentified Prototypes . | . . . Parts Lost 8 | . 2 6 Power 1 | . . 1 Propulsion 2 | . . 2 Utility 1 | . . 1 Weapon 4 | . 2 2 Highest Loss Streak 3 | . 1 3 To Critical Strikes . | . . . Average Slot Usage (%) 85 | . 99 64 Engine 12 | . 14 11 Leg 11 | . 14 6 Wheel 7 | . 12 . Device 16 | . 21 8 Processor 3 | . 6 . Hackware 4 | . . 10 Energy Gun 8 | . 5 12 Ballistic Cannon 17 | . 20 14 Naked Turns . | . . . Heaviest Build 15 | 15 15 13 Greatest Support 32 | 32 32 20 Greatest Overweight (x) 3 | . 3 3 Average Overweight (x) . | . . 1 Largest Inventory Capacity 8 | 8 5 5 Average Capacity 5 | 6 5 5 Most Carried 5 | 5 5 5 Average Carried 3 | 2 4 3 Final Capacity 5 | 5 5 5 Final Carried 5 | 4 5 3 Class Distribution -------------------- 100% | Mutant Dominant Class ---------------- Mutant | -10/Materials Mutant | -10/Mines Resources | -11 -10 -10 ----------- Run | Yrd Mat Min Matter Collected 915 | 436 328 151 Remotely . | . . . Salvage Created 620 | 282 259 79 Parts 65 | 33 30 2 Haulers Intercepted . | . . . Recyclers Shooed . | . . . Parts Field Recycled . | . . . Retrieved Matter . | . . . Parts Self-Destructed . | . . . Prevented . | . . . Kills | -11 -10 -10 ------- Run | Yrd Mat Min Combat Hostiles Destroyed 20 | . 13 7 Guns 3 | . . 3 Cannons 17 | . 13 4 Classes Destroyed 7 | 3 3 1 Worker 6 | 4 2 . Tunneler 7 | 7 . . Recycler 1 | 1 . . Operator 1 | . 1 . Swarmer 9 | . 6 3 Grunt 8 | . 7 1 Assembled 3 | . . 3 Best Kill Streak 7 | 3 7 3 Combat Bots Only 5 | . 5 3 Max Kills in Single Turn 2 | 1 2 1 Gunslinging . | . . . Exploded . | . . . Melee . | . . . Uniques/NPCs Destroyed . | . . . Combat | -11 -10 -10 -------- Run | Yrd Mat Min Hostile Shots Fired 154 | . 109 45 Missed 43 | . 34 9 Damage Taken 1078 | . 675 403 Core 262 | . 142 120 Absorbed by Shields . | . . . Core Remaining (%) 100 | 100 . . Volleys Fired 85 | 21 38 26 Largest 2 | 2 2 2 Hottest 90 | 90 89 89 Shots Fired 162 | 42 72 48 Gun 79 | 42 13 24 Cannon 83 | . 59 24 Launcher . | . . . Special . | . . . Kinetic 92 | 8 60 24 Thermal 70 | 34 12 24 Explosive . | . . . Electromagnetic . | . . . Robot Hit Streak 9 | 9 5 9 Robot Miss Streak 7 | 3 7 5 Penetration Max . | . . . Secondary Targets . | . . . Shots Hit Robots 82 | 27 32 23 Core Hits 41 | 13 17 11 Critical Kills . | . . . Critical Parts Destroyed . | . . . Critical Strikes 7 | 1 2 4 Burn 5 | 1 1 3 Blast 2 | . 1 1 Melee Attacks . | . . . Impact . | . . . Slashing . | . . . Piercing . | . . . Sneak Attacks . | . . . Combat Hostiles . | . . . Follow-up Attacks . | . . . Damage Inflicted 1524 | 324 737 463 Guns 595 | 324 111 160 Cannons 929 | . 626 303 Explosions . | . . . Melee . | . . . Ramming . | . . . Kinetic 1023 | 84 636 303 Thermal 501 | 240 101 160 Explosive . | . . . Electromagnetic . | . . . Impact . | . . . Slashing . | . . . Piercing . | . . . Highest Corruption . | . . . Average Corruption . | . . . Corruption Purged . | . . . Corruption Blocked . | . . . Overload Shots . | . . . Overflow Damage 2 | . 2 . Projectiles 2 | . 2 . Explosions . | . . . Melee . | . . . Knockbacks 11 | . 7 4 Impact . | . . . Kinetic 10 | . 6 4 Secondary 1 | . 1 . Self-Inflicted Damage . | . . . Shots . | . . . Rammed . | . . . Targets Rammed . | . . . Kicked . | . . . Crushed . | . . . Highest Temperature 189 | 120 171 189 Average Temperature 61 | 39 56 86 Received Heat Transfer 216 | . 150 66 Siege Activations . | . . . Robots Corrupted . | . . . Combat Hostiles . | . . . Parts Fried . | . . . Impact Corruptions . | . . . Robots Melted . | . . . Combat Hostiles . | . . . Parts Melted 4 | 2 1 1 Heat Transferred 1827 | 754 370 703 Parts Sabotaged . | . . . Parts Stolen . | . . . Parts Stripped . | . . . Power Chain Reactions . | . . . Alert | -11 -10 -10 ------- Run | Yrd Mat Min Peak Influence 324 | 60 324 208 Initial 75 | . 39 75 Average 119 | 23 157 164 Maximum Alert Level 1 | . 1 1 Low Security (%) 68 | 100 50 64 Level 1 31 | . 49 35 Level 2 . | . . . Level 3 . | . . . Level 4 . | . . . Level 5 . | . . . High Security . | . . . Max Security . | . . . Squads Dispatched 3 | . 3 . Investigation . | . . . Extermination . | . . . Reinforcement 3 | . 3 . Assault . | . . . Garrison . | . . . Intercept . | . . . Searches Triggered . | . . . Construction Impeded . | . . . Haulers Reinforced . | . . . Active Scanning Responses . | . . . Cargo Convoy Interrupts . | . . . Stealth | -11 -10 -10 --------- Run | Yrd Mat Min Distress Signals 2 | . 2 . Communications Jammed . | . . . Distress Signals . | . . . Times Spotted 32 | . 19 13 Peak Tracking Total 5 | . 5 4 Tactical Retreats 3 | . . 3 Traps | -11 -10 -10 ------- Run | Yrd Mat Min Traps Triggered . | . . . Indirectly . | . . . Trap Hack Attempts . | . . . Triggered . | . . . Disarmed . | . . . Reprogrammed . | . . . Reused . | . . . Traps Extracted . | . . . Installed . | . . . Triggered . | . . . Machines | -11 -10 -10 ---------- Run | Yrd Mat Min Machines Disabled 3 | . 2 1 Max in Single Turn 1 | . 1 1 Machines Repaired . | . . . Machines Dismantled . | . . . Machines Sabotaged . | . . . Overloaded Fab Kills . | . . . Hacking | -11 -10 -10 --------- Run | Yrd Mat Min Machines Accessed 1 | . . 1 Terminals 1 | . . 1 Fabricators . | . . . Repair Stations . | . . . Recycling Units . | . . . Scanalyzers . | . . . Garrison Access . | . . . Total Hacks 7 | . . 7 Successful 5 | . . 5 Failed 1 | . . 1 Catastrophic . | . . . Database Lockouts 1 | . . 1 Manual . | . . . Terminals 7 | . . 7 Fabricators . | . . . Repair Stations . | . . . Recycling Units . | . . . Scanalyzers . | . . . Garrison Access . | . . . Terminal Hacks 5 | . . 5 Record 3 | . . 3 Dispatch Records 1 | . . 1 Zone Layout 1 | . . 1 Fabricator Hacks . | . . . Repair Station Hacks . | . . . Recycling Unit Hacks . | . . . Scanalyzer . | . . . Garrison Access Hacks . | . . . Unauthorized Hacks . | . . . Terminals . | . . . Fabricators . | . . . Repair Stations . | . . . Recycling Units . | . . . Scanalyzers . | . . . Garrison Access . | . . . Data Cores Recovered . | . . . Used . | . . . Hacking Detections 1 | . . 1 Full Trace Events 1 | . . 1 Feedback Events . | . . . Feedback Blocked . | . . . Robot Schematics Acquired . | . . . Robots Built . | . . . Authchips . | . . . Time . | . . . Total Robot Build Rating . | . . . Part Schematics Acquired . | . . . Parts Built . | . . . Authchips . | . . . Time . | . . . Total Part Build Rating . | . . . Parts Repaired . | . . . Time . | . . . Parts Recycled . | . . . Recycled Matter . | . . . Retrieved Matter . | . . . Retrieved Components . | . . . Parts Scanalyzed . | . . . Part Schematics Acquired . | . . . Parts Damaged . | . . . Bothacking | -11 -10 -10 ------------ Run | Yrd Mat Min Used RIF Installer . | . . . Robots Hacked . | . . . Non-combat . | . . . Combat . | . . . Robot Hacks Applied . | . . . Relay Couplers Released . | . . . Fabnet Peak Effective % . | . . . Robots Rewired . | . . . Allies Hacked . | . . . Hacks Repelled . | . . . Allies | -11 -10 -10 -------- Run | Yrd Mat Min Total Allies . | . . . Largest Group . | . . . Highest-Rated Group . | . . . Highest-Rated Ally . | . . . Total Orders . | . . . Ally Attacks . | . . . Total Damage . | . . . Kills . | . . . Allies Corrupted . | . . . Allies Melted . | . . . Intel | -11 -10 -10 ------- Run | Yrd Mat Min Robot Analysis Total . | . . . Derelict Logs Recovered 1 | . . 1 Drone Launches . | . . . Drone Recoveries . | . . . Exploration | -11 -10 -10 ------------- Run | Yrd Mat Min Turns Passed 1173 | 346 496 331 Spaces Moved 693 | 233 309 151 Core 105 | 12 . 93 Treads . | . . . Legs 201 | . 143 58 Wheels 376 | 221 155 . Hover . | . . . Flight 11 | . 11 . Fastest Speed 50 | 50 100 100 Average Speed 118 | 97 113 163 Slowest Speed 285 | 100 285 200 Overloaded Moves . | . . . Propulsion Burnouts . | . . . Robots Hopped . | . . . Cave-ins Triggered . | . . . Exploration Rate (%) 20 | 9 29 23 Regions Visited 2 Branch Regions 1 Pre-discovered Areas . | . . . Known Exits Taken . | . . . Unknown Exits Taken 2 | 1 1 . Scrap Searched 1 | . . 1 Spaces Dug . | . . . Terrain Destroyed 4 | . 4 . Melee . | . . . Projectile 4 | . 4 . AOE . | . . . Terrain Rammed . | . . . Walls Destroyed . | . . . Machines Disabled . | . . . Actions | -11 -10 -10 --------- Run | Yrd Mat Min Total 885 | 312 385 188 Wait 32 | 23 4 5 Move 691 | 232 308 151 Hop . | . . . Pick Up 30 | 17 13 . Fast Attach . | . . . Attach 21 | 11 6 4 Detach 3 | 1 . 2 Swap 6 | 1 5 . Drop 17 | 6 11 . Fire 85 | 21 38 26 Melee . | . . . Ram . | . . . Kick . | . . . Crush . | . . . Escape Stasis . | . . . Rewire . | . . . Trap . | . . . Miscellaneous . | . . . Route ------- -11/Scrapyard -10/Materials (discovered 3 exits: [Mat] / *Min x2) -10/Mines (discovered 1 exit: [*Mat]) History --------- Turn | Location | Event 34 | -11/Scrapyard | Discovered new exit (range 15) 347 | -11/Scrapyard | Entered Materials 348 | -10/Materials | Build established: Mutant 579 | -10/Materials | Discovered new exit (range 14) 587 | -10/Materials | Discovered new exit (range 13) 625 | -10/Materials | Discovered new exit (range 16) 837 | -10/Materials | Core integrity fell below 50% 843 | -10/Materials | Entered Mines 856 | -10/Mines | Discovered new exit (range 9) 933 | -10/Mines | Central database locked down 1052 | -10/Mines | Assembled infested the area 1116 | -10/Mines | Core integrity fell below 20% 1164 | -10/Mines | Lost 3 parts (1p2w) 1174 | -10/Mines | Destroyed by Y-45 Defender with Heavy Assault Rifle Last Messages --------------- R-06 Scavenger destroyed. as-35978 knocked back. K-01 Serf collects debris. Ion Engine destroyed. K-01 Serf collects debris. as-06043 destroyed. as-35978 knocked back. K-01 Serf suffers critical hit (Burn). Imp. Light Cannon destroyed. Seismic Survey Station disabled. Med. Laser destroyed. as-35978 destroyed. R-06 Scavenger collects Com. Wheel. Acquired 10 matter. Acquired 4 matter. Acquired 21 matter. R-06 Scavenger collects Seismic Detector. R-06 Scavenger collects Wheel. as-58346 sneak attacks. R-06 Scavenger destroyed. Map ----- +----------------------------------------------------+ | ??????????????????????????????? | | ??????????????????????????????? | | ??????????????????????????????? | | ??????????????????????????????? | | ??????????????????????????????? | | ??????????????????????????????? | | ??????????????????????????????? | | ????????????????????????????### | | ????????????????????????????# | | ????????????????????????????# | | ????????????????????????????# | | ????????????????????????????# | | ???????????????????????????? | | ????????????????????????????# | | ???????????????????????###### | | ???????????????????????? | | ????????????????????????? | | ??????##################### | | ???????????????????????### | | ???######?????????????## | | ??##" Y"##????????????# | | ??#!!Y /!#????????????# | | ??#[! ! #????????????# | | ?### ##????????????# | | #####//###??############ | | ### @ ##?############### | | ## ##### ##???# %# | | ## #### < ##?### ## | | ## ### %%% % #### ## | | ### ### % #### ## | | ?#### = % #### | | ???## ## # "" ########?# | | ???## #####!# """ T######### | | ???## #####=# """ ###??# | | ???## #####%############## ### | | ????# ## =%! #### #?? | | ????# ## *== ##?# ####?? | | ???? $## """ """ ##?# #????? | | ???? ## """ """ ##?# #????? | | ??? ##### """ """ #### ##???? | | ??? ???## ##???? | | ??? ???## #### ##???? | | ?? ????## ##?# #????? | | ?? ????###############?# #????? | | ???????###############?# #????? | | ???????????????????????# #????# | | ???????????????????????# #????# | | ???????????????????????# #????# | | ??????????????????????????????? | | ??????????????????????????????? | +----------------------------------------------------+ Best States ------------- Heat Dissipation 25 Energy Generation 10 Energy Capacity 250 Matter Stores 300 Matter Capacity 300 Sight Range 16 Robot Scan Range 14 Terrain Scan Range 16 Terrain Scan Density 85 Evasion (%) 55 Offensive Hacking 10 Item Schematics ----------------- None Robot Schematics ------------------ None Fabricated ------------ Nothing Alien Tech Used ----------------- None Achievements -------------- None Challenges ------------ None Game ------ Seed LinearSigixMapper Manual? 0 Play Time 00:27:28 Cumulative 3.1 hours Start 2024.05.18 @ 01:37:09 End 2024.05.18 @ 02:03:41 Sessions 2 Manual Loads 0 Difficulty Rogue Special Mode None Game No. 3 Rogue 3 Adventurer 0 Explorer 0 Win Type - Total 0 Types 0/0/0/0/0/0/0/0/0 Lore% 2 Gallery% 7 Achievement% 8 Wizard Run 0 Options --------- Layout 2 ASCII 0 Keyboard 0 Movement Arrows Keybinds 0 Fullscreen 0 Font 28/Proggy Map View 65x48 Zoom Use 1% Tactical HUD 0 Map Filters NONE Filters NONE Steam 1 RUN: 2e7f9034-5941-4fa4-a518-da16622b2935